fUST/lending_fUST_20250918
["ID","MTS","AMOUNT","RATE_DAILY","PERIOD"]
[385925551,1758136247567,-480.0,0.00024379,3]
[385925553,1758136247578,-498.34,0.00024379,3]
[385925568,1758136247705,-480.0,0.00024379,3]
[385925570,1758136247721,-199.53,0.00024379,3]
[385925572,1758136247730,-480.0,0.00024379,3]
[385925574,1758136247739,-480.0,0.00024379,3]
[385925576,1758136247748,-480.0,0.00024379,3]
[385925578,1758136247758,-616.5,0.00024379,3]
[385925580,1758136247767,-480.0,0.00024379,3]
[385925582,1758136247776,-169.48,0.00024379,3]
[385925584,1758136247785,-480.0,0.00024379,3]
[385925586,1758136247794,-480.0,0.00024379,3]
[385925588,1758136247803,-480.0,0.00024379,3]
[385925590,1758136247812,-480.0,0.00024379,3]
[385925592,1758136247822,-480.0,0.00024379,3]
[385925594,1758136247831,-480.0,0.00024379,3]
[385925596,1758136247841,-480.0,0.00024379,3]
[385925598,1758136247850,-635.91,0.00024379,3]
[385925600,1758136247860,-480.0,0.00024379,3]
[385925602,1758136247869,-480.0,0.00024379,3]
[385925604,1758136247879,-480.0,0.00024379,3]
[385925606,1758136247890,-480.0,0.00024379,3]
[385925608,1758136247899,-480.0,0.00024379,3]
[385925610,1758136247908,-669.65,0.00024379,3]
[385925612,1758136247918,-480.0,0.00024379,3]
[385925614,1758136247927,-985.34,0.0002438,3]
[385925616,1758136247936,-480.0,0.0002438,3]
[385925618,1758136247945,-1950.79,0.0002438,3]
[385925620,1758136247954,-591.79,0.0002438,3]
[385925622,1758136247963,-639.11,0.00024393,3]
[385925624,1758136247973,-480.0,0.00024393,3]
[385925626,1758136247982,-520.14,0.00024394,3]
[385925628,1758136247991,-7999.59,0.00024394,3]
[385925630,1758136248000,-480.0,0.00024394,3]
[385925632,1758136248011,-725.15,0.00024394,3]
[385925634,1758136248020,-480.0,0.00024394,3]
[385925636,1758136248030,-410.0,0.00024403,2]
[385925638,1758136248039,-1837.0,0.00024414,2]
[385925640,1758136248048,-872.54150745,0.00024421,2]
[385925643,1758136248058,-1000.0,0.00024421,2]
[385925644,1758136248068,-1000.0,0.00024421,2]
[385925647,1758136248078,-157.07382482,0.00024421,2]
[385925648,1758136248087,-209.05238701,0.00024421,2]
[385925650,1758136248097,-1000.0,0.00024421,2]
[385925652,1758136248106,-1000.0,0.00024421,2]
[385925654,1758136248115,-321.57,0.00024445,3]
[385925656,1758136248124,-480.0,0.00024445,3]
[385925658,1758136248136,-480.0,0.00024445,3]
[385925660,1758136248145,-278.88,0.00024445,3]
[385925662,1758136248155,-480.0,0.00024445,3]
[385925665,1758136248165,-480.0,0.00024445,3]
[385925666,1758136248174,-480.0,0.00024445,3]
[385925668,1758136248185,-513.66,0.00024445,3]
[385925670,1758136248194,-487.73,0.00024445,3]
[385925672,1758136248205,-596.31,0.00024445,3]
[385925674,1758136248214,-480.0,0.00024445,3]
[385925676,1758136248224,-480.0,0.00024454,3]
[385925678,1758136248233,-480.0,0.00024454,3]
[385925680,1758136248242,-207.66,0.00024454,3]
[385925682,1758136248251,-480.0,0.00024454,3]
[385925684,1758136248260,-492.17479989,0.00024454,3]
[385925686,1758136248270,-1745.38,0.00024454,3]
[385925688,1758136248279,-480.0,0.00024454,3]
[385925690,1758136248289,-480.0,0.00024454,3]
[385925692,1758136248298,-480.0,0.00024454,3]
[385925694,1758136248308,-615.01239671,0.00024454,3]
[385925696,1758136248318,-380.0,0.00024464,2]
[385925698,1758136248327,-500.0,0.00024468,2]
[385925700,1758136248337,-480.0,0.00024472,3]
[385925702,1758136248346,-2988.22,0.00024472,3]
[385925704,1758136248355,-480.0,0.00024472,3]
[385925706,1758136248365,-1250.13,0.00024472,3]
[385925708,1758136248374,-1290.2,0.0002448,3]
[385925711,1758136248385,-236.65,0.0002448,3]
[385925712,1758136248401,-480.0,0.0002448,3]
[385925714,1758136248410,-480.0,0.0002448,3]
[385925716,1758136248420,-480.0,0.00024481,3]
[385925718,1758136248429,-480.0,0.00024481,3]
[385925720,1758136248441,-480.0,0.00024481,3]
[385925723,1758136248453,-151.0,0.000245,10]
[385925725,1758136248462,-191.30226869,0.00024529,2]
[385925727,1758136248472,-764.4438657,0.00024529,2]
[385925728,1758136248482,-308.15367254,0.00024529,2]
[385925731,1758136248491,-168.0,0.00024529,2]
[385925733,1758136248501,-5717.8505283,0.00024576,2]
[385925734,1758136248510,-151.0,0.000246,5]
[385925736,1758136248520,-151.0,0.00024612,4]
[385925738,1758136248530,-480.0,0.00024641,3]
[385925740,1758136248539,-480.0,0.00024641,3]
[385925742,1758136248548,-751.82,0.00024641,3]
[385925744,1758136248558,-480.0,0.00024642,3]
[385925746,1758136248567,-864.5,0.00024645,3]
[385925748,1758136248576,-432.26,0.00024645,3]
[385925750,1758136248585,-1007.4,0.00024652,3]
[385925752,1758136248594,-480.0,0.00024652,3]
[385925754,1758136248604,-480.0,0.00024652,3]
[385925756,1758136248613,-480.0,0.00024652,3]
[385925758,1758136248622,-628.37,0.00024652,3]
[385925760,1758136248631,-873.36,0.00024652,3]
[385925762,1758136248642,-480.0,0.00024652,3]
[385925764,1758136248651,-480.0,0.00024652,3]
[385925766,1758136248662,-480.0,0.00024652,3]
[385925769,1758136248672,-480.0,0.00024653,3]
[385925771,1758136248682,-480.0,0.00024653,3]
[385925772,1758136248692,-480.0,0.00024653,3]
[385925774,1758136248701,-1215.82,0.00024653,3]
[385925776,1758136248710,-480.0,0.00024653,3]
[385925778,1758136248719,-480.0,0.00024653,3]
[385925780,1758136248728,-480.0,0.00024653,3]
[385925782,1758136248739,-480.0,0.00024653,3]
[385925785,1758136248748,-480.0,0.00024653,3]
[385925787,1758136248758,-480.0,0.00024653,3]
[385925789,1758136248769,-673.86,0.00024653,3]
[385925791,1758136248779,-480.0,0.00024653,3]
[385925792,1758136248788,-480.0,0.00024653,3]
[385925795,1758136248799,-480.0,0.00024653,3]
[385925797,1758136248808,-480.0,0.00024653,3]
[385925798,1758136248818,-480.0,0.00024653,3]
[385925800,1758136248828,-310.88,0.00024653,3]
[385925802,1758136248837,-617.83,0.00024653,3]
[385925805,1758136248847,-480.0,0.00024653,3]
[385925806,1758136248857,-480.0,0.00024653,3]
[385925808,1758136248867,-323.29,0.00024653,3]
[385925811,1758136248876,-480.0,0.00024653,3]
[385925813,1758136248888,-480.0,0.00024653,3]
[385925815,1758136248898,-635.91,0.00024653,3]
[385925817,1758136248908,-600.1,0.00024653,3]
[385925818,1758136248918,-480.0,0.00024653,3]
[385925821,1758136248928,-480.0,0.00024653,3]
[385925823,1758136248939,-480.0,0.00024653,3]
[385925825,1758136248949,-480.0,0.00024653,3]
[385925826,1758136248959,-669.65,0.00024653,3]
[385925828,1758136248968,-480.0,0.00024653,3]
[385925830,1758136248978,-985.34,0.00024654,3]
[385925832,1758136248988,-480.0,0.00024654,3]
[385925834,1758136248998,-1950.79,0.00024654,3]
[385925836,1758136249007,-591.79,0.00024654,3]
[385925838,1758136249016,-253.64820505,0.00024657,2]
[385925840,1758136249026,-150.0,0.00024658,2]
[385925842,1758136249035,-500.0,0.00024658,2]
[385925844,1758136249045,-639.11,0.00024667,3]
[385925846,1758136249055,-7999.59,0.00024668,3]
[385925848,1758136249064,-480.0,0.00024668,3]
[385925850,1758136249075,-725.15,0.00024668,3]
[385925852,1758136249084,-480.0,0.00024668,3]
[385925855,1758136249094,-151.0,0.000247,10]
[385925857,1758136249104,-151.0,0.000247,10]
[385925859,1758136249114,-480.0,0.00024719,3]
[385925861,1758136249124,-480.0,0.00024719,3]
[385925863,1758136249135,-480.0,0.00024719,3]
[385925865,1758136249145,-480.0,0.00024719,3]
[385925867,1758136249155,-254.73,0.00024719,3]
[385925869,1758136249165,-513.66,0.00024719,3]
[385925871,1758136249174,-480.0,0.00024719,3]
[385925873,1758136249184,-300.0,0.00024721,2]
[385925875,1758136249194,-480.0,0.00024728,3]
[385925877,1758136249204,-480.0,0.00024728,3]
[385925879,1758136249213,-480.0,0.00024728,3]
[385925881,1758136249223,-1745.38,0.00024728,3]
[385925883,1758136249232,-206.92,0.00024728,3]
[385925885,1758136249242,-154.78,0.00024728,3]
[385925887,1758136249251,-372.71,0.00024728,3]
[385925889,1758136249260,-455.46,0.00024746,3]
[385925891,1758136249269,-2988.22,0.00024746,3]
[385925893,1758136249278,-480.0,0.00024746,3]
[385925895,1758136249288,-1250.13,0.00024746,3]
[385925897,1758136249297,-1290.2,0.00024754,3]
[385925899,1758136249306,-480.0,0.00024754,3]
[385925901,1758136249314,-213.93030642,0.00024754,3]
[385925903,1758136249323,-480.0,0.00024755,3]
[385925905,1758136249332,-480.0,0.00024755,3]
[385925907,1758136249341,-151.0,0.00024756,4]
[385925909,1758136249350,-1500.0,0.00024768,2]
[385925911,1758136249360,-288.0,0.00024787,2]
[385925913,1758136249369,-192.0,0.00024789,7]
[385925915,1758136249377,-2000.0,0.000248,2]
[385925917,1758136249388,-151.0,0.000248,5]
[385925919,1758136249399,-105510.261662,0.000248,2]
[385925921,1758136249409,-260.0,0.00024807,2]
[385925923,1758136249418,-6580.03561801,0.00024816,2]
[385925925,1758136249427,-168.0,0.00024856,2]
[385925927,1758136249436,-166.865411,0.000249,7]
[385925929,1758136249448,-151.0,0.000249,4]
[385925931,1758136249457,-730158.407374,0.000249,2]
[385925933,1758136249466,-480.0,0.00024915,3]
[385925935,1758136249479,-480.0,0.00024915,3]
[385925937,1758136249488,-751.82,0.00024915,3]
[385925939,1758136249497,-480.0,0.00024916,3]
[385925941,1758136249506,-2000.0,0.00024916,2]
[385925943,1758136249515,-5861.68120345,0.00024917,2]
[385925945,1758136249525,-1007.4,0.00024926,3]
[385925947,1758136249533,-480.0,0.00024926,3]
[385925949,1758136249542,-480.0,0.00024926,3]
[385925951,1758136249551,-480.0,0.00024926,3]
[385925952,1758136249560,-628.37,0.00024926,3]
[385925955,1758136249571,-873.36,0.00024926,3]
[385925957,1758136249580,-480.0,0.00024926,3]
[385925959,1758136249589,-480.0,0.00024926,3]
[385925961,1758136249599,-480.0,0.00024926,3]
[385925962,1758136249608,-307.46,0.00024927,3]
[385925964,1758136249617,-480.0,0.00024927,3]
[385925967,1758136249627,-363.97,0.00024927,3]
[385925968,1758136249638,-1215.82,0.00024927,3]
[385925970,1758136249647,-480.0,0.00024927,3]
[385925973,1758136249657,-480.0,0.00024927,3]
[385925975,1758136249667,-157.01,0.00024927,3]
[385925977,1758136249676,-480.0,0.00024927,3]
[385925979,1758136249686,-363.11725606,0.00024927,3]
[385925981,1758136249696,-480.0,0.00024927,3]
[385925983,1758136249705,-673.86,0.00024927,3]
[385925985,1758136249715,-480.0,0.00024927,3]
[385925987,1758136249724,-480.0,0.00024927,3]
[385925988,1758136249733,-480.0,0.00024927,3]
[385925990,1758136249742,-480.0,0.00024927,3]
[385925992,1758136249752,-210.72,0.00024927,3]
[385925994,1758136249761,-480.0,0.00024927,3]
[385925996,1758136249771,-480.0,0.00024927,3]
[385925999,1758136249780,-480.0,0.00024927,3]
[385926000,1758136249790,-480.0,0.00024927,3]
[385926002,1758136249799,-635.91,0.00024927,3]
[385926005,1758136249809,-480.0,0.00024927,3]
[385926007,1758136249819,-480.0,0.00024927,3]
[385926009,1758136249829,-480.0,0.00024927,3]
[385926011,1758136249838,-480.0,0.00024927,3]
[385926013,1758136249848,-669.65,0.00024927,3]
[385926015,1758136249858,-344.97,0.00024927,3]
[385926017,1758136249867,-985.34,0.00024928,3]
[385926019,1758136249876,-480.0,0.00024928,3]
[385926021,1758136249886,-1950.79,0.00024928,3]
[385926023,1758136249896,-591.79,0.00024928,3]
[385926025,1758136249906,-500.0,0.00024932,2]
[385926027,1758136249915,-639.11,0.00024941,3]
[385926029,1758136249924,-7999.59,0.00024942,3]
[385926031,1758136249933,-480.0,0.00024942,3]
[385926033,1758136249942,-725.15,0.00024942,3]
[385926043,1758136249952,-480.0,0.00024942,3]
[385926046,1758136250045,-1500.0,0.00024968,2]
[385926048,1758136250055,-1500.0,0.00024968,2]
[385926050,1758136250064,-1500.0,0.00024968,2]
[385926052,1758136250073,-700.0,0.00024986,2]
[385926054,1758136250083,-5861.68120345,0.0002499,2]
[385926056,1758136250092,-480.0,0.00024993,3]
[385926058,1758136250101,-386.25,0.00024993,3]
[385926060,1758136250110,-480.0,0.00024993,3]
[385926062,1758136250119,-480.0,0.00024993,3]
[385926064,1758136250129,-513.66,0.00024993,3]
[385926066,1758136250139,-480.0,0.00024993,3]
[385926068,1758136250148,-1071.06049471,0.00025,2]
[385926070,1758136250157,-154.0,0.00025,2]
[385926072,1758136250167,-585.52470792,0.00025,2]
[385926074,1758136250176,-10500.46608821,0.00025,2]
[385926076,1758136250185,-10683.0,0.00025,10]
[385926078,1758136250195,-160.0,0.00025,10]
[385926080,1758136250204,-531.53982319,0.00025,10]
[385926082,1758136250213,-417.15472785,0.00025,10]
[385926084,1758136250223,-174.27467724,0.00025002,3]
[385926086,1758136250232,-506.13,0.00025002,3]
[385926088,1758136250241,-480.0,0.00025002,3]
[385926090,1758136250250,-1745.38,0.00025002,3]
[385926092,1758136250260,-2988.22,0.0002502,3]
[385926094,1758136250269,-480.0,0.0002502,3]
[385926096,1758136250278,-1250.13,0.0002502,3]
[385926098,1758136250287,-1290.2,0.00025028,3]
[385926100,1758136250296,-480.0,0.00025028,3]
[385926102,1758136250305,-388.93206816,0.00025029,3]
[385926104,1758136250314,-480.0,0.00025029,3]
[385926106,1758136250323,-1333.0,0.00025068,7]
[385926108,1758136250332,-480.0,0.00025189,3]
[385926110,1758136250341,-480.0,0.00025189,3]
[385926112,1758136250350,-751.82,0.00025189,3]
[385926114,1758136250359,-168.0,0.0002519,2]
[385926116,1758136250368,-480.0,0.0002519,3]
[385926118,1758136250378,-1007.4,0.000252,3]
[385926120,1758136250388,-480.0,0.000252,3]
[385926121,1758136250399,-480.0,0.000252,3]
[385926123,1758136250409,-307.83902287,0.000252,3]
[385926125,1758136250418,-628.37,0.000252,3]
[385926127,1758136250428,-873.36,0.000252,3]
[385926129,1758136250439,-480.0,0.000252,3]
[385926131,1758136250449,-276.56,0.000252,3]
[385926133,1758136250459,-480.0,0.000252,3]
[385926135,1758136250470,-334.81,0.00025201,3]
[385926137,1758136250481,-1215.82,0.00025201,3]
[385926139,1758136250490,-397.81417535,0.00025201,3]
[385926141,1758136250500,-480.0,0.00025201,3]
[385926143,1758136250509,-480.0,0.00025201,3]
[385926145,1758136250518,-480.0,0.00025201,3]
[385926147,1758136250527,-673.86,0.00025201,3]
[385926149,1758136250537,-480.0,0.00025201,3]
[385926151,1758136250547,-480.0,0.00025201,3]
[385926153,1758136250556,-480.0,0.00025201,3]
[385926155,1758136250566,-480.0,0.00025201,3]
[385926157,1758136250575,-480.0,0.00025201,3]
[385926159,1758136250585,-480.0,0.00025201,3]
[385926161,1758136250594,-264.40271838,0.00025201,3]
[385926163,1758136250603,-333.71,0.00025201,3]
[385926166,1758136250613,-635.91,0.00025201,3]
[385926168,1758136250623,-480.0,0.00025201,3]
[385926170,1758136250633,-480.0,0.00025201,3]
[385926172,1758136250643,-480.0,0.00025201,3]
[385926174,1758136250653,-480.0,0.00025201,3]
[385926176,1758136250662,-669.65,0.00025201,3]
[385926177,1758136250673,-985.34,0.00025202,3]
[385926179,1758136250683,-480.0,0.00025202,3]
[385926181,1758136250692,-1950.79,0.00025202,3]
[385926183,1758136250701,-591.79,0.00025202,3]
[385926186,1758136250711,-200.46236356,0.00025205,2]
[385926188,1758136250719,-500.0,0.00025206,2]
[385926189,1758136250729,-639.11,0.00025215,3]
[385926191,1758136250738,-7999.59,0.00025216,3]
[385926194,1758136250748,-480.0,0.00025216,3]
[385926196,1758136250757,-725.15,0.00025216,3]
[385926198,1758136250767,-480.0,0.00025216,3]
[385926200,1758136250776,-420.0,0.00025254,2]
[385926201,1758136250785,-420.0,0.00025254,2]
[385926203,1758136250794,-480.0,0.00025267,3]
[385926205,1758136250803,-480.0,0.00025267,3]
[385926207,1758136250812,-480.0,0.00025267,3]
[385926209,1758136250821,-513.66,0.00025267,3]
[385926211,1758136250830,-480.0,0.00025267,3]
[385926213,1758136250839,-450.0,0.00025268,2]
[385926215,1758136250848,-480.0,0.00025276,3]
[385926217,1758136250858,-1745.38,0.00025276,3]
[385926219,1758136250868,-2988.22,0.00025294,3]
[385926221,1758136250877,-480.0,0.00025294,3]
[385926223,1758136250887,-1250.13,0.00025294,3]
[385926225,1758136250896,-1290.2,0.00025302,3]
[385926228,1758136250914,-480.0,0.00025302,3]
[385926231,1758136250926,-493.1,0.00025303,3]
[385926233,1758136250936,-704.1867647,0.00025316,2]
[385926234,1758136250946,-168.0,0.00025346,2]
[385926235,1758136250956,-360.0,0.00025355,2]
[385926236,1758136250966,-1321.0,0.00025371,2]
[385926237,1758136250976,-629.47233631,0.00025392,2]
[385926238,1758136250985,-600.0,0.00025397,20]
[385926239,1758136250995,-15588.46,0.000254,2]
[385926240,1758136251004,-160.0,0.00025433,5]
[385926241,1758136251014,-47594.44741611,0.00025444,2]
[385926242,1758136251025,-250.0,0.00025461,2]
[385926243,1758136251034,-572.78,0.00025463,3]
[385926244,1758136251044,-480.0,0.00025463,3]
[385926245,1758136251053,-751.82,0.00025463,3]
[385926247,1758136251063,-480.0,0.00025464,3]
[385926249,1758136251072,-2451.77186906,0.00025464,2]
[385926251,1758136251082,-1007.4,0.00025474,3]
[385926253,1758136251092,-480.0,0.00025474,3]
[385926255,1758136251101,-480.0,0.00025474,3]
[385926257,1758136251110,-628.37,0.00025474,3]
[385926259,1758136251119,-873.36,0.00025474,3]
[385926261,1758136251129,-480.0,0.00025474,3]
[385926263,1758136251142,-480.0,0.00025474,3]
[385926265,1758136251151,-1215.82,0.00025475,3]
[385926267,1758136251161,-480.0,0.00025475,3]
[385926269,1758136251170,-480.0,0.00025475,3]
[385926271,1758136251179,-480.0,0.00025475,3]
[385926273,1758136251189,-673.86,0.00025475,3]
[385926275,1758136251198,-480.0,0.00025475,3]
[385926277,1758136251208,-480.0,0.00025475,3]
[385926279,1758136251217,-480.0,0.00025475,3]
[385926281,1758136251227,-480.0,0.00025475,3]
[385926283,1758136251237,-480.0,0.00025475,3]
[385926285,1758136251247,-405.96,0.00025475,3]
[385926287,1758136251256,-635.91,0.00025475,3]
[385926289,1758136251266,-480.0,0.00025475,3]
[385926291,1758136251276,-480.0,0.00025475,3]
[385926293,1758136251285,-480.0,0.00025475,3]
[385926295,1758136251294,-480.0,0.00025475,3]
[385926297,1758136251304,-669.65,0.00025475,3]
[385926299,1758136251313,-985.34,0.00025476,3]
[385926301,1758136251323,-480.0,0.00025476,3]
[385926303,1758136251333,-1950.79,0.00025476,3]
[385926305,1758136251342,-591.79,0.00025476,3]
[385926307,1758136251353,-500.0,0.0002548,2]
[385926309,1758136251362,-639.11,0.00025489,3]
[385926311,1758136251372,-7999.59,0.0002549,3]
[385926313,1758136251381,-480.0,0.0002549,3]
[385926315,1758136251396,-725.15,0.0002549,3]
[385926317,1758136251408,-480.0,0.0002549,3]
[385926319,1758136251417,-2034.55,0.000255,7]
[385926321,1758136251427,-801.5,0.000255,7]
[385926323,1758136251437,-2000.0,0.00025516,2]
[385926325,1758136251446,-2000.0,0.00025516,2]
[385926327,1758136251456,-2000.0,0.00025516,2]
[385926329,1758136251465,-480.0,0.00025541,3]
[385926331,1758136251474,-283.54,0.00025541,3]
[385926333,1758136251484,-480.0,0.00025541,3]
[385926335,1758136251493,-513.66,0.00025541,3]
[385926337,1758136251502,-480.0,0.00025541,3]
[385926339,1758136251512,-480.0,0.0002555,3]
[385926341,1758136251522,-1745.38,0.0002555,3]
[385926343,1758136251532,-2988.22,0.00025568,3]
[385926345,1758136251542,-480.0,0.00025568,3]
[385926347,1758136251551,-1250.13,0.00025568,3]
[385926349,1758136251560,-1290.2,0.00025576,3]
[385926351,1758136251570,-480.0,0.00025576,3]
[385926353,1758136251580,-480.0,0.00025736,3]
[385926355,1758136251589,-751.82,0.00025736,3]
[385926357,1758136251599,-480.0,0.00025738,3]
[385926359,1758136251608,-1007.4,0.00025748,3]
[385926361,1758136251617,-480.0,0.00025748,3]
[385926363,1758136251628,-280.38,0.00025748,3]
[385926365,1758136251639,-628.37,0.00025748,3]
[385926367,1758136251648,-873.36,0.00025748,3]
[385926369,1758136251657,-480.0,0.00025748,3]
[385926371,1758136251667,-480.0,0.00025748,3]
[385926373,1758136251676,-1215.82,0.00025749,3]
[385926375,1758136251685,-480.0,0.00025749,3]
[385926377,1758136251694,-480.0,0.00025749,3]
[385926379,1758136251704,-480.0,0.00025749,3]
[385926381,1758136251714,-673.86,0.00025749,3]
[385926383,1758136251723,-480.0,0.00025749,3]
[385926385,1758136251732,-480.0,0.00025749,3]
[385926387,1758136251743,-480.0,0.00025749,3]
[385926389,1758136251753,-480.0,0.00025749,3]
[385926391,1758136251762,-183.18,0.00025749,3]
[385926392,1758136251772,-635.91,0.00025749,3]
[385926394,1758136251781,-480.0,0.00025749,3]
[385926396,1758136251790,-480.0,0.00025749,3]
[385926398,1758136251800,-480.0,0.00025749,3]
[385926400,1758136251809,-480.0,0.00025749,3]
[385926402,1758136251824,-669.65,0.00025749,3]
[385926404,1758136251833,-985.34,0.0002575,3]
[385926406,1758136251843,-480.0,0.0002575,3]
[385926408,1758136251852,-1950.79,0.0002575,3]
[385926410,1758136251863,-591.79,0.0002575,3]
[385926412,1758136251876,-500.0,0.00025754,2]
[385926414,1758136251891,-639.11,0.00025763,3]
[385926416,1758136251900,-7999.59,0.00025764,3]
[385926418,1758136251910,-480.0,0.00025764,3]
[385926420,1758136251920,-725.15,0.00025764,3]
[385926422,1758136251929,-595.15,0.00025764,3]
[385926424,1758136251939,-1122.47,0.000258,7]
[385926426,1758136251948,-2000.0,0.000258,2]
[385926428,1758136251957,-160.0,0.000258,7]
[385926430,1758136251966,-286.60752691,0.00025815,3]
[385926432,1758136251975,-480.0,0.00025815,3]
[385926434,1758136251985,-513.66,0.00025815,3]
[385926436,1758136251994,-227.68,0.00025815,3]
[385926438,1758136252003,-300.82493314,0.00025816,2]
[385926440,1758136252012,-480.0,0.00025824,3]
[385926442,1758136252022,-1745.38,0.00025824,3]
[385926444,1758136252031,-2988.22,0.00025842,3]
[385926446,1758136252040,-480.0,0.00025842,3]
[385926448,1758136252049,-1250.13,0.00025842,3]
[385926450,1758136252058,-1290.2,0.0002585,3]
[385926452,1758136252068,-480.0,0.0002585,3]
[385926453,1758136252078,-201.0,0.000259,14]
[385926455,1758136252087,-460.0,0.00025902,2]
[385926458,1758136252098,-5717.8505283,0.00025964,2]
[385926460,1758136252107,-480.0,0.0002601,3]
[385926461,1758136252117,-751.82,0.0002601,3]
[385926473,1758136252223,-4216.8302043,0.0002601,2]
[385926475,1758136252233,-480.0,0.00026012,3]
[385926477,1758136252243,-1007.4,0.00026022,3]
[385926479,1758136252252,-480.0,0.00026022,3]
[385926481,1758136252261,-628.37,0.00026022,3]
[385926483,1758136252270,-873.36,0.00026022,3]
[385926485,1758136252279,-480.0,0.00026022,3]
[385926487,1758136252289,-480.0,0.00026022,3]
[385926489,1758136252298,-1215.82,0.00026023,3]
[385926491,1758136252307,-166.01,0.00026023,3]
[385926493,1758136252317,-229.28,0.00026023,3]
[385926495,1758136252327,-480.0,0.00026023,3]
[385926497,1758136252336,-673.86,0.00026023,3]
[385926499,1758136252346,-480.0,0.00026023,3]
[385926501,1758136252356,-480.0,0.00026023,3]
[385926503,1758136252365,-480.0,0.00026023,3]
[385926505,1758136252375,-480.0,0.00026023,3]
[385926507,1758136252384,-635.91,0.00026023,3]
[385926509,1758136252397,-156.31,0.00026023,3]
[385926510,1758136252408,-480.0,0.00026023,3]
[385926512,1758136252418,-480.0,0.00026023,3]
[385926514,1758136252428,-480.0,0.00026023,3]
[385926516,1758136252439,-669.65,0.00026023,3]
[385926518,1758136252449,-680.26535437,0.00026024,2]
[385926520,1758136252459,-985.34,0.00026024,3]
[385926522,1758136252469,-480.0,0.00026024,3]
[385926524,1758136252481,-1950.79,0.00026024,3]
[385926526,1758136252491,-591.79,0.00026024,3]
[385926528,1758136252500,-3404.32,0.00026027,4]
[385926530,1758136252510,-500.0,0.00026028,2]
[385926532,1758136252519,-639.11,0.00026037,3]
[385926534,1758136252528,-7999.59,0.00026038,3]
[385926536,1758136252537,-480.0,0.00026038,3]
[385926538,1758136252546,-725.15,0.00026038,3]
[385926540,1758136252556,-2500.0,0.00026064,2]
[385926542,1758136252565,-2500.0,0.00026064,2]
[385926544,1758136252574,-2500.0,0.00026064,2]
[385926546,1758136252583,-700.0,0.00026082,2]
[385926548,1758136252592,-480.0,0.00026089,3]
[385926550,1758136252602,-513.66,0.00026089,3]
[385926552,1758136252611,-480.0,0.00026098,3]
[385926554,1758136252621,-1745.38,0.00026098,3]
[385926556,1758136252630,-1500.0,0.000261,2]
[385926558,1758136252641,-1500.0,0.000261,2]
[385926560,1758136252650,-1500.0,0.000261,2]
[385926562,1758136252659,-1500.0,0.000261,2]
[385926564,1758136252669,-1500.0,0.000261,2]
[385926566,1758136252678,-1500.0,0.000261,2]
[385926568,1758136252688,-1500.0,0.000261,2]